[Event "*** SCC Grand Prix: Titled Tuesday Blitz"]
[Site "Chess.com"]
[Date "2020.10.06"]
[Round "8"]
[White "Sanyura"]
[Black "Cocaino74"]
[Result "1-0"]
[WhiteElo "2537"]
[BlackElo "2368"]
[TimeControl "180+1"]
[EndTime "11:35:44 PDT"]
[Termination "Sanyura won by resignation"]

1. e4 {[%clk 0:02:56.4]} 1... c5 {[%clk 0:02:59.8]} 2. d4 {[%clk 0:02:54.9]}
2... cxd4 {[%clk 0:03:00.7]} 3. c3 {[%clk 0:02:54.9]} 3... Nf6 {[%clk
0:03:00.4]} 4. e5 {[%clk 0:02:54.6]} 4... Nd5 {[%clk 0:03:01]} 5. Nf3 {[%clk
0:02:54.5]} 5... Nc6 {[%clk 0:03:00.8]} 6. cxd4 {[%clk 0:02:52.9]} 6... d6
{[%clk 0:03:00.9]} 7. Nc3 {[%clk 0:02:53.1]} 7... Nxc3 {[%clk 0:02:46.7]} 8.
bxc3 {[%clk 0:02:54]} 8... dxe5 {[%clk 0:02:47.4]} 9. d5 {[%clk 0:02:52.5]} 9...
e4 {[%clk 0:02:44.6]} 10. Ng5 {[%clk 0:02:52.4]} 10... Ne5 {[%clk 0:02:39.2]}
11. Nxe4 {[%clk 0:02:52.2]} 11... g6 {[%clk 0:02:27.9]} 12. Bg5 {[%clk
0:02:42.3]} 12... h6 {[%clk 0:02:23.5]} 13. Bh4 {[%clk 0:02:40.7]} 13... Bg7
{[%clk 0:02:20.8]} 14. d6 {[%clk 0:02:35.8]} 14... g5 {[%clk 0:02:16.3]} 15. Bg3
{[%clk 0:02:35.7]} 15... O-O {[%clk 0:02:09.9]} 16. Be2 {[%clk 0:02:27]} 16...
f5 {[%clk 0:01:59.2]} 17. Bxe5 {[%clk 0:02:21.7]} 17... Bxe5 {[%clk 0:01:58.9]}
18. dxe7 {[%clk 0:02:21.5]} 18... Qxe7 {[%clk 0:01:57.7]} 19. Nd2 {[%clk
0:02:01.3]} 19... Rd8 {[%clk 0:01:36.4]} 20. O-O {[%clk 0:01:58.8]} 20... Bf4
{[%clk 0:01:32.1]} 21. Qb3+ {[%clk 0:01:56]} 21... Be6 {[%clk 0:01:30.7]} 22.
Bc4 {[%clk 0:01:55.6]} 22... Bxc4 {[%clk 0:01:06]} 23. Nxc4 {[%clk 0:01:56.5]}
23... Qf7 {[%clk 0:00:38.3]} 24. Rad1 {[%clk 0:01:38.6]} 24... Rdc8 {[%clk
0:00:31.1]} 25. Rd7 {[%clk 0:01:19.3]} 25... Qxc4 {[%clk 0:00:23.8]} 26. Rd8+
{[%clk 0:01:14.5]} 26... Rxd8 {[%clk 0:00:09.6]} 27. Qxc4+ {[%clk 0:01:14.4]}
27... Kg7 {[%clk 0:00:08.4]} 28. g3 {[%clk 0:01:14.7]} 28... Be5 {[%clk
0:00:07.9]} 29. Qb5 {[%clk 0:01:14]} 29... Bxc3 {[%clk 0:00:03.5]} 30. Qxb7+
{[%clk 0:01:13.9]} 30... Kg6 {[%clk 0:00:03.1]} 31. Qc6+ {[%clk 0:01:13.7]}
31... Bf6 {[%clk 0:00:02.9]} 32. Re1 {[%clk 0:01:12.4]} 32... Rac8 {[%clk
0:00:02.3]} 33. Qa6 {[%clk 0:01:12.4]} 33... Rc7 {[%clk 0:00:01.9]} 34. Re6
{[%clk 0:01:11.8]} 34... Rf7 {[%clk 0:00:01.7]} 35. Kg2 {[%clk 0:01:08.2]} 35...
g4 {[%clk 0:00:01.8]} 36. h4 {[%clk 0:01:08.4]} 36... gxh3+ {[%clk 0:00:02]} 37.
Kxh3 {[%clk 0:01:08.9]} 37... Rd4 {[%clk 0:00:02]} 38. Qe2 {[%clk 0:01:04.6]}
38... Rg4 {[%clk 0:00:02]} 39. f3 {[%clk 0:01:02.8]} 39... Rg5 {[%clk
0:00:02.4]} 40. Re8 {[%clk 0:00:54.2]} 40... Kg7 {[%clk 0:00:02.6]} 41. Qe6
{[%clk 0:00:53.1]} 41... Rh5+ {[%clk 0:00:02.8]} 42. Kg2 {[%clk 0:00:52.7]}
42... Rg5 {[%clk 0:00:03.3]} 43. f4 {[%clk 0:00:51]} 43... Rg6 {[%clk
0:00:03.2]} 44. Qxf5 {[%clk 0:00:50.4]} 44... Bh4 {[%clk 0:00:02.9]} 45. Rg8+
{[%clk 0:00:50.2]} 45... Kxg8 {[%clk 0:00:02]} 46. Qxg6+ {[%clk 0:00:50.5]}
46... Rg7 {[%clk 0:00:02.5]} 47. Qxg7+ {[%clk 0:00:45.5]} 47... Kxg7 {[%clk
0:00:02.8]} 48. gxh4 {[%clk 0:00:46]} 48... Kf6 {[%clk 0:00:03.5]} 49. Kf3
{[%clk 0:00:44.1]} 49... Kf5 {[%clk 0:00:01.7]} 50. h5 {[%clk 0:00:44.4]} 50...
a6 {[%clk 0:00:02]} 51. a3 {[%clk 0:00:42.9]} 1-0

[Event "*** SCC Grand Prix: Titled Tuesday Blitz"]
[Site "Chess.com"]
[Date "2020.10.06"]
[Round "8"]
[White "Me_ch_an"]
[Black "lucachess49"]
[Result "0-1"]
[WhiteElo "2295"]
[BlackElo "2390"]
[TimeControl "180+1"]
[EndTime "11:35:44 PDT"]
[Termination "lucachess49 won by resignation"]

1. e4 {[%clk 0:03:00.9]} 1... e5 {[%clk 0:02:59.1]} 2. Nf3 {[%clk 0:03:00.7]}
2... Nc6 {[%clk 0:02:59.8]} 3. Bb5 {[%clk 0:03:00.6]} 3... a6 {[%clk 0:02:59.4]}
4. Ba4 {[%clk 0:03:00.6]} 4... Nf6 {[%clk 0:02:59.5]} 5. Qe2 {[%clk 0:03:01]}
5... d6 {[%clk 0:02:56.6]} 6. c3 {[%clk 0:03:01.1]} 6... Be7 {[%clk 0:02:53.6]}
7. O-O {[%clk 0:03:00.4]} 7... O-O {[%clk 0:02:53.5]} 8. Rd1 {[%clk 0:02:57.2]}
8... b5 {[%clk 0:02:44.1]} 9. Bb3 {[%clk 0:02:56.7]} 9... Bg4 {[%clk 0:02:43.9]}
10. d3 {[%clk 0:02:56.4]} 10... Na5 {[%clk 0:02:35.2]} 11. Bc2 {[%clk
0:02:55.3]} 11... c5 {[%clk 0:02:35.3]} 12. Nbd2 {[%clk 0:02:55]} 12... Nc6
{[%clk 0:02:32.1]} 13. Nf1 {[%clk 0:02:55]} 13... d5 {[%clk 0:02:31.2]} 14. h3
{[%clk 0:02:54.7]} 14... Bh5 {[%clk 0:02:30.7]} 15. Ng3 {[%clk 0:02:54.8]} 15...
Bg6 {[%clk 0:02:26.7]} 16. Nh4 {[%clk 0:02:53.7]} 16... d4 {[%clk 0:01:39.8]}
17. Nhf5 {[%clk 0:02:50.4]} 17... Re8 {[%clk 0:01:38.2]} 18. f4 {[%clk
0:02:47.4]} 18... Nd7 {[%clk 0:01:35.9]} 19. fxe5 {[%clk 0:02:33.2]} 19... Bg5
{[%clk 0:01:32.4]} 20. Bxg5 {[%clk 0:02:06.9]} 20... Qxg5 {[%clk 0:01:33.3]} 21.
h4 {[%clk 0:02:06.6]} 21... Qd8 {[%clk 0:01:25.5]} 22. cxd4 {[%clk 0:01:57.1]}
22... Bxf5 {[%clk 0:01:13.6]} 23. Nxf5 {[%clk 0:01:37.8]} 23... Nxd4 {[%clk
0:01:13.1]} 24. Qg4 {[%clk 0:00:53.6]} 24... Nxf5 {[%clk 0:01:11.4]} 25. exf5
{[%clk 0:00:42.7]} 25... Nxe5 {[%clk 0:01:10.9]} 26. Qg3 {[%clk 0:00:40.8]}
26... Qd4+ {[%clk 0:01:00.3]} 27. Kh1 {[%clk 0:00:39.9]} 27... Ng4 {[%clk
0:00:57]} 28. Re1 {[%clk 0:00:32.3]} 28... h5 {[%clk 0:00:56.8]} 29. Bb3 {[%clk
0:00:12.8]} 29... c4 {[%clk 0:00:20.3]} 30. dxc4 {[%clk 0:00:12.7]} 30... bxc4
{[%clk 0:00:21.2]} 31. Ba4 {[%clk 0:00:13.1]} 31... Rxe1+ {[%clk 0:00:21.1]} 32.
Rxe1 {[%clk 0:00:14]} 32... Qxb2 {[%clk 0:00:21.7]} 33. Qf3 {[%clk 0:00:10.1]}
33... Rd8 {[%clk 0:00:19.4]} 34. Qc6 {[%clk 0:00:07.5]} 34... c3 {[%clk
0:00:18.6]} 35. Bb3 {[%clk 0:00:04]} 35... Rf8 {[%clk 0:00:16.8]} 36. Qc7 {[%clk
0:00:03.7]} 36... Qf2 {[%clk 0:00:15.3]} 37. Bxf7+ {[%clk 0:00:03.2]} 37... Rxf7
{[%clk 0:00:15.4]} 38. Re8+ {[%clk 0:00:03.2]} 38... Kh7 {[%clk 0:00:15.8]} 39.
Qc4 {[%clk 0:00:01.6]} 39... Qxh4+ {[%clk 0:00:14.6]} 40. Kg1 {[%clk 0:00:01.1]}
40... Qh2+ {[%clk 0:00:14.8]} 41. Kf1 {[%clk 0:00:01.2]} 41... Rxf5+ {[%clk
0:00:14.4]} 0-1

[Event "*** SCC Grand Prix: Titled Tuesday Blitz"]
[Site "Chess.com"]
[Date "2020.10.06"]
[Round "8"]
[White "penguingm1"]
[Black "hurricane7791"]
[Result "1-0"]
[WhiteElo "2856"]
[BlackElo "2703"]
[TimeControl "180+1"]
[EndTime "11:35:45 PDT"]
[Termination "penguingm1 won by checkmate"]

1. d4 {[%clk 0:03:00.7]} 1... Nf6 {[%clk 0:02:59.7]} 2. c4 {[%clk 0:03:00]} 2...
e6 {[%clk 0:02:58.3]} 3. Nc3 {[%clk 0:03:00.4]} 3... Bb4 {[%clk 0:02:57.8]} 4.
Qc2 {[%clk 0:03:00.5]} 4... d5 {[%clk 0:02:57.6]} 5. cxd5 {[%clk 0:03:00.5]}
5... exd5 {[%clk 0:02:58.5]} 6. Bg5 {[%clk 0:02:59.9]} 6... h6 {[%clk
0:02:58.6]} 7. Bh4 {[%clk 0:03:00.2]} 7... Nc6 {[%clk 0:02:58.7]} 8. e3 {[%clk
0:03:00.3]} 8... g5 {[%clk 0:02:59.2]} 9. Bg3 {[%clk 0:03:00.6]} 9... h5 {[%clk
0:02:59.8]} 10. h3 {[%clk 0:02:51.9]} 10... Ne4 {[%clk 0:02:55.2]} 11. Bh2
{[%clk 0:02:49.2]} 11... Qe7 {[%clk 0:02:54.5]} 12. Bb5 {[%clk 0:02:42]} 12...
Bf5 {[%clk 0:02:49]} 13. Qb3 {[%clk 0:02:18.8]} 13... a6 {[%clk 0:02:17.2]} 14.
Bxc6+ {[%clk 0:02:00.1]} 14... bxc6 {[%clk 0:02:18.1]} 15. Ne2 {[%clk
0:02:00.1]} 15... O-O {[%clk 0:02:00.9]} 16. Qa4 {[%clk 0:01:56.6]} 16... c5
{[%clk 0:01:19.3]} 17. O-O {[%clk 0:01:46.2]} 17... Bxc3 {[%clk 0:01:14.6]} 18.
Nxc3 {[%clk 0:01:30.6]} 18... Nxc3 {[%clk 0:01:14.1]} 19. bxc3 {[%clk
0:01:30.7]} 19... c4 {[%clk 0:01:11.1]} 20. Qa5 {[%clk 0:01:30.4]} 20... Rfd8
{[%clk 0:01:09]} 21. Bxc7 {[%clk 0:01:29.7]} 21... Rd7 {[%clk 0:01:08]} 22. Bh2
{[%clk 0:01:27.5]} 22... Qe6 {[%clk 0:00:59.6]} 23. Rfe1 {[%clk 0:01:23.5]}
23... Bd3 {[%clk 0:00:57.1]} 24. f3 {[%clk 0:01:11.1]} 24... f5 {[%clk
0:00:47.9]} 25. Rad1 {[%clk 0:01:08.4]} 25... Kh7 {[%clk 0:00:46.5]} 26. Be5
{[%clk 0:01:07.1]} 26... Rg8 {[%clk 0:00:36]} 27. Rd2 {[%clk 0:00:49.5]} 27...
Rb7 {[%clk 0:00:34.9]} 28. Rf2 {[%clk 0:00:39.9]} 28... h4 {[%clk 0:00:33.4]}
29. e4 {[%clk 0:00:36.8]} 29... dxe4 {[%clk 0:00:31.1]} 30. fxe4 {[%clk
0:00:35.4]} 30... Bxe4 {[%clk 0:00:32]} 31. Rxe4 {[%clk 0:00:09.8]} 31... fxe4
{[%clk 0:00:32.9]} 32. Rf6 {[%clk 0:00:09.9]} 32... Qc8 {[%clk 0:00:23.2]} 33.
Qd5 {[%clk 0:00:08.7]} 33... Rg6 {[%clk 0:00:16.9]} 34. Qxe4 {[%clk 0:00:04.2]}
34... Rg7 {[%clk 0:00:17]} 35. Rd6 {[%clk 0:00:01.8]} 35... Rg8 {[%clk
0:00:16.8]} 36. Rf6 {[%clk 0:00:01.9]} 36... Kh6 {[%clk 0:00:16.6]} 37. Qf3
{[%clk 0:00:02.1]} 37... Rxf6 {[%clk 0:00:16]} 38. Qxf6+ {[%clk 0:00:03]} 38...
Rg6 {[%clk 0:00:16.7]} 39. Qf7 {[%clk 0:00:03.6]} 39... Qg8 {[%clk 0:00:16.7]}
40. Qf3 {[%clk 0:00:03.6]} 40... Qe6 {[%clk 0:00:16.3]} 41. Qe4 {[%clk 0:00:04]}
41... Rg8 {[%clk 0:00:16.6]} 42. d5 {[%clk 0:00:04.4]} 42... Qe7 {[%clk
0:00:16.4]} 43. d6 {[%clk 0:00:04.3]} 43... Qe6 {[%clk 0:00:16.6]} 44. Bg7+
{[%clk 0:00:04.9]} 44... Rxg7 {[%clk 0:00:16.4]} 45. Qxe6+ {[%clk 0:00:05.4]}
45... Rg6 {[%clk 0:00:17]} 46. Qe7 {[%clk 0:00:05.9]} 46... Rg7 {[%clk
0:00:16.7]} 47. Qf6+ {[%clk 0:00:06.4]} 47... Rg6 {[%clk 0:00:16.9]} 48. Qh8#
{[%clk 0:00:07.3]} 1-0

[Event "*** SCC Grand Prix: Titled Tuesday Blitz"]
[Site "Chess.com"]
[Date "2020.10.06"]
[Round "8"]
[White "Evachess2006"]
[Black "ethylalcohol"]
[Result "0-1"]
[WhiteElo "1625"]
[BlackElo "2125"]
[TimeControl "180+1"]
[EndTime "11:35:47 PDT"]
[Termination "ethylalcohol won on time"]

1. e4 {[%clk 0:01:32.7]} 1... e6 {[%clk 0:02:58.3]} 2. d4 {[%clk 0:01:30.6]}
2... d5 {[%clk 0:02:58.4]} 3. exd5 {[%clk 0:01:31.3]} 3... exd5 {[%clk
0:02:59.3]} 4. Bd3 {[%clk 0:01:30.9]} 4... Bd6 {[%clk 0:02:59.2]} 5. c3 {[%clk
0:01:31.8]} 5... Ne7 {[%clk 0:02:59.4]} 6. Be3 {[%clk 0:01:32.5]} 6... O-O
{[%clk 0:02:59.5]} 7. Ne2 {[%clk 0:01:31.6]} 7... Bf5 {[%clk 0:02:59.3]} 8. O-O
{[%clk 0:01:31.1]} 8... Nbc6 {[%clk 0:02:58.7]} 9. Qc2 {[%clk 0:01:27.6]} 9...
Qd7 {[%clk 0:02:58.2]} 10. Nd2 {[%clk 0:01:26.2]} 10... Rae8 {[%clk 0:02:57.5]}
11. Nf3 {[%clk 0:01:22.1]} 11... Bxd3 {[%clk 0:02:54.6]} 12. Qxd3 {[%clk
0:01:18.3]} 12... Qf5 {[%clk 0:02:53.4]} 13. Qxf5 {[%clk 0:01:15.6]} 13... Nxf5
{[%clk 0:02:54.3]} 14. Nf4 {[%clk 0:01:07.7]} 14... Nxe3 {[%clk 0:02:48.3]} 15.
fxe3 {[%clk 0:01:00.5]} 15... Rxe3 {[%clk 0:02:48.2]} 16. Nxd5 {[%clk
0:00:59.8]} 16... Re2 {[%clk 0:02:47.6]} 17. Rf2 {[%clk 0:00:57.4]} 17... Rfe8
{[%clk 0:02:46.4]} 18. Raf1 {[%clk 0:00:44.1]} 18... Na5 {[%clk 0:02:37.4]} 19.
Rxe2 {[%clk 0:00:41.3]} 19... Rxe2 {[%clk 0:02:35.3]} 20. Rf2 {[%clk 0:00:42.2]}
20... Re8 {[%clk 0:02:12.4]} 21. Nd2 {[%clk 0:00:38.5]} 21... c6 {[%clk
0:02:03.7]} 22. Nb4 {[%clk 0:00:26.9]} 22... c5 {[%clk 0:01:47.4]} 23. Nd3
{[%clk 0:00:24.4]} 23... cxd4 {[%clk 0:01:44.8]} 24. cxd4 {[%clk 0:00:23.2]}
24... Nc6 {[%clk 0:01:42.6]} 25. Nb3 {[%clk 0:00:22.5]} 25... Re3 {[%clk
0:01:39]} 26. Ndc5 {[%clk 0:00:19.9]} 26... Re1+ {[%clk 0:01:36.6]} 27. Rf1
{[%clk 0:00:18.6]} 27... Bxh2+ {[%clk 0:01:36.3]} 28. Kf2 {[%clk 0:00:16.5]}
28... Bg3+ {[%clk 0:01:36]} 29. Kg1 {[%clk 0:00:15.8]} 29... Re2 {[%clk
0:01:11.4]} 30. Nxb7 {[%clk 0:00:10.7]} 30... Rxb2 {[%clk 0:01:08.4]} 31. Rc1
{[%clk 0:00:11]} 31... Ne7 {[%clk 0:01:06.1]} 32. Rc5 {[%clk 0:00:08.7]} 32...
Kf8 {[%clk 0:00:46.9]} 33. Kf1 {[%clk 0:00:05.7]} 33... Rf2+ {[%clk 0:00:44.3]}
34. Kg1 {[%clk 0:00:04.5]} 34... Rxa2 {[%clk 0:00:43.7]} 35. Kf1 {[%clk
0:00:04.5]} 35... Rf2+ {[%clk 0:00:42.9]} 36. Kg1 {[%clk 0:00:03.7]} 36... Rb2
{[%clk 0:00:42.5]} 37. Kf1 {[%clk 0:00:04.2]} 37... Rxb3 {[%clk 0:00:41.6]} 38.
Na5 {[%clk 0:00:03.7]} 38... Rb2 {[%clk 0:00:39]} 39. Kg1 {[%clk 0:00:03.4]}
39... Bf2+ {[%clk 0:00:33.3]} 40. Kh2 {[%clk 0:00:01.6]} 40... Bxd4 {[%clk
0:00:32.8]} 41. Rh5 {[%clk 0:00:01.7]} 41... h6 {[%clk 0:00:32.2]} 42. Kh3
{[%clk 0:00:02.3]} 42... Ra2 {[%clk 0:00:30.4]} 43. Kh2 {[%clk 0:00:03.2]} 43...
Ng6 {[%clk 0:00:27.7]} 44. Rb5 {[%clk 0:00:04.1]} 44... Be5+ {[%clk 0:00:27.4]}
0-1

[Event "*** SCC Grand Prix: Titled Tuesday Blitz"]
[Site "Chess.com"]
[Date "2020.10.06"]
[Round "8"]
[White "Leonid_Starozhilov"]
[Black "Aleksey_Sorokin"]
[Result "0-1"]
[WhiteElo "2690"]
[BlackElo "2825"]
[TimeControl "180+1"]
[EndTime "11:35:49 PDT"]
[Termination "Aleksey_Sorokin won on time"]

1. e4 {[%clk 0:03:00.9]} 1... c6 {[%clk 0:02:59.8]} 2. d3 {[%clk 0:02:57.7]}
2... d5 {[%clk 0:03:00.7]} 3. Nd2 {[%clk 0:02:58.1]} 3... e5 {[%clk 0:03:00.7]}
4. Ngf3 {[%clk 0:02:58.4]} 4... Bd6 {[%clk 0:03:01.3]} 5. c3 {[%clk 0:02:56.8]}
5... Nf6 {[%clk 0:02:59.7]} 6. Be2 {[%clk 0:02:56.1]} 6... O-O {[%clk
0:02:59.3]} 7. O-O {[%clk 0:02:56.7]} 7... Re8 {[%clk 0:02:58.9]} 8. a4 {[%clk
0:02:54.7]} 8... Bg4 {[%clk 0:02:58.8]} 9. h3 {[%clk 0:02:51.9]} 9... Bh5 {[%clk
0:02:58.3]} 10. Nh4 {[%clk 0:02:51.4]} 10... Bxe2 {[%clk 0:02:55.5]} 11. Qxe2
{[%clk 0:02:51.5]} 11... Nbd7 {[%clk 0:02:56.4]} 12. Nhf3 {[%clk 0:02:47.6]}
12... a5 {[%clk 0:02:52.1]} 13. Rd1 {[%clk 0:02:42.6]} 13... Qb6 {[%clk
0:02:51.8]} 14. Nf1 {[%clk 0:02:41.9]} 14... Rad8 {[%clk 0:02:50.7]} 15. Bg5
{[%clk 0:02:37.6]} 15... h6 {[%clk 0:02:46]} 16. Bxf6 {[%clk 0:02:36.8]} 16...
Nxf6 {[%clk 0:02:46.9]} 17. Ng3 {[%clk 0:02:35.4]} 17... dxe4 {[%clk 0:02:42.9]}
18. dxe4 {[%clk 0:02:20.2]} 18... Qb3 {[%clk 0:02:41.3]} 19. Rd3 {[%clk
0:01:49]} 19... Bc7 {[%clk 0:02:38.1]} 20. Rxd8 {[%clk 0:01:23.6]} 20... Rxd8
{[%clk 0:02:37.9]} 21. Nf5 {[%clk 0:01:21.6]} 21... Kh7 {[%clk 0:02:34.2]} 22.
g4 {[%clk 0:00:55.4]} 22... g6 {[%clk 0:02:33.3]} 23. Ng3 {[%clk 0:00:54.4]}
23... Kg7 {[%clk 0:02:31.9]} 24. Kg2 {[%clk 0:00:54.5]} 24... b5 {[%clk
0:02:23.4]} 25. axb5 {[%clk 0:00:48.4]} 25... cxb5 {[%clk 0:02:24.3]} 26. Ra3
{[%clk 0:00:46.5]} 26... Qd1 {[%clk 0:02:13]} 27. Qxb5 {[%clk 0:00:44.3]} 27...
Rd3 {[%clk 0:01:53.9]} 28. Nh2 {[%clk 0:00:14.5]} 28... Rd2 {[%clk 0:01:50.9]}
29. Nf3 {[%clk 0:00:07.9]} 29... Rd3 {[%clk 0:01:49.5]} 30. Nh2 {[%clk
0:00:08.2]} 30... Qc2 {[%clk 0:01:36.2]} 31. Nhf1 {[%clk 0:00:06.8]} 31... Bd8
{[%clk 0:01:26.7]} 32. Qb3 {[%clk 0:00:06.5]} 32... Qc1 {[%clk 0:01:23.9]} 33.
Qb5 {[%clk 0:00:06.2]} 33... Qc2 {[%clk 0:01:17.8]} 34. Qb3 {[%clk 0:00:06]}
34... Qc1 {[%clk 0:01:17.6]} 35. Qb5 {[%clk 0:00:06.4]} 35... Rd1 {[%clk
0:01:17.8]} 36. Rxa5 {[%clk 0:00:04.2]} 36... Bxa5 {[%clk 0:01:16.6]} 37. Qxa5
{[%clk 0:00:05.1]} 37... Qxb2 {[%clk 0:01:15.9]} 38. Qxe5 {[%clk 0:00:05.7]}
38... Rc1 {[%clk 0:01:13.8]} 39. h4 {[%clk 0:00:05.1]} 39... Qxc3 {[%clk
0:01:13.5]} 40. Qxc3 {[%clk 0:00:05.2]} 40... Rxc3 {[%clk 0:01:14.4]} 41. f3
{[%clk 0:00:04.1]} 41... Rc2+ {[%clk 0:01:13.7]} 42. Kh3 {[%clk 0:00:03.8]}
42... Nd7 {[%clk 0:01:11.6]} 43. f4 {[%clk 0:00:03.2]} 43... Nc5 {[%clk
0:01:09.9]} 44. g5 {[%clk 0:00:03]} 44... h5 {[%clk 0:01:07.5]} 45. f5 {[%clk
0:00:02.7]} 45... Rf2 {[%clk 0:01:04]} 46. Ne3 {[%clk 0:00:02.1]} 46... Nd3
{[%clk 0:01:01.4]} 47. f6+ {[%clk 0:00:01.8]} 47... Kf8 {[%clk 0:01:00]} 48. Nd5
{[%clk 0:00:01.5]} 48... Ke8 {[%clk 0:00:57.9]} 49. e5 {[%clk 0:00:01.6]} 49...
Nxe5 {[%clk 0:00:55.5]} 50. Ne4 {[%clk 0:00:02.1]} 50... Ra2 {[%clk 0:00:50.6]}
51. Nd6+ {[%clk 0:00:02]} 51... Kd7 {[%clk 0:00:47]} 52. Ne4 {[%clk 0:00:01.9]}
52... Ke6 {[%clk 0:00:45.5]} 53. Nf4+ {[%clk 0:00:01.8]} 53... Kf5 {[%clk
0:00:44.4]} 54. Nd6+ {[%clk 0:00:01.9]} 54... Kxf4 {[%clk 0:00:44]} 55. Nxf7
{[%clk 0:00:02.4]} 55... Ng4 {[%clk 0:00:43]} 0-1

[Event "*** SCC Grand Prix: Titled Tuesday Blitz"]
[Site "Chess.com"]
[Date "2020.10.06"]
[Round "8"]
[White "profofchess"]
[Black "PotapovaM"]
[Result "0-1"]
[WhiteElo "2377"]
[BlackElo "2552"]
[TimeControl "180+1"]
[EndTime "11:35:49 PDT"]
[Termination "PotapovaM won on time"]

1. e4 {[%clk 0:03:00.9]} 1... c5 {[%clk 0:02:59.8]} 2. Nf3 {[%clk 0:03:00.4]}
2... d6 {[%clk 0:03:00.2]} 3. c3 {[%clk 0:02:58.6]} 3... Nf6 {[%clk 0:03:00.1]}
4. Bc4 {[%clk 0:02:58.5]} 4... Bg4 {[%clk 0:02:57.9]} 5. Qb3 {[%clk 0:02:49.8]}
5... e6 {[%clk 0:02:46.5]} 6. e5 {[%clk 0:02:38.8]} 6... Bxf3 {[%clk 0:02:15.1]}
7. gxf3 {[%clk 0:02:37.9]} 7... dxe5 {[%clk 0:02:13.6]} 8. Qxb7 {[%clk
0:02:34.8]} 8... Nbd7 {[%clk 0:02:13.7]} 9. Rg1 {[%clk 0:02:26.6]} 9... g6
{[%clk 0:02:11.3]} 10. d3 {[%clk 0:02:22]} 10... Bg7 {[%clk 0:02:09]} 11. Nd2
{[%clk 0:02:08.1]} 11... O-O {[%clk 0:01:59.7]} 12. Ne4 {[%clk 0:02:06.9]} 12...
Qb6 {[%clk 0:01:26.4]} 13. Qxb6 {[%clk 0:01:55.5]} 13... axb6 {[%clk 0:01:23.9]}
14. f4 {[%clk 0:01:35.8]} 14... Nd5 {[%clk 0:01:19.4]} 15. Bb5 {[%clk
0:01:26.7]} 15... Rad8 {[%clk 0:01:12.9]} 16. fxe5 {[%clk 0:00:58.6]} 16... Nxe5
{[%clk 0:01:13.8]} 17. Rg3 {[%clk 0:00:56.8]} 17... Nc7 {[%clk 0:01:08.1]} 18.
a4 {[%clk 0:00:23.2]} 18... Nxb5 {[%clk 0:01:05.3]} 19. axb5 {[%clk 0:00:24.1]}
19... Nxd3+ {[%clk 0:01:05.7]} 20. Ke2 {[%clk 0:00:24.5]} 20... c4 {[%clk
0:00:59.3]} 21. Bg5 {[%clk 0:00:21.6]} 21... Rd5 {[%clk 0:00:52.3]} 22. Nf6+
{[%clk 0:00:13.7]} 22... Bxf6 {[%clk 0:00:52.2]} 23. Bxf6 {[%clk 0:00:14.6]}
23... Rxb5 {[%clk 0:00:52.8]} 24. b4 {[%clk 0:00:12.5]} 24... Rf5 {[%clk
0:00:48.9]} 25. Bd4 {[%clk 0:00:11.8]} 25... b5 {[%clk 0:00:47.6]} 26. Ra7
{[%clk 0:00:09.5]} 26... e5 {[%clk 0:00:29.7]} 27. Be3 {[%clk 0:00:09.1]} 27...
Rd8 {[%clk 0:00:14.6]} 28. Rg1 {[%clk 0:00:07.9]} 28... e4 {[%clk 0:00:12.6]}
29. Rd1 {[%clk 0:00:03.1]} 29... Rfd5 {[%clk 0:00:12.7]} 30. Rda1 {[%clk
0:00:02.6]} 30... h5 {[%clk 0:00:11.3]} 31. Rb7 {[%clk 0:00:02.1]} 31... R8d7
{[%clk 0:00:10.7]} 32. Raa7 {[%clk 0:00:02]} 32... Rxb7 {[%clk 0:00:09.7]} 33.
Rxb7 {[%clk 0:00:02.9]} 33... Rf5 {[%clk 0:00:06.8]} 34. Bd4 {[%clk 0:00:02.9]}
34... Nf4+ {[%clk 0:00:06.5]} 35. Ke3 {[%clk 0:00:01.4]} 35... Kh7 {[%clk
0:00:05.7]} 36. Rb8 {[%clk 0:00:01.2]} 36... Kh6 {[%clk 0:00:01.9]} 37. Kd2
{[%clk 0:00:01.4]} 37... g5 {[%clk 0:00:01.4]} 0-1

[Event "*** SCC Grand Prix: Titled Tuesday Blitz"]
[Site "Chess.com"]
[Date "2020.10.06"]
[Round "8"]
[White "MasterMK73"]
[Black "tmr88"]
[Result "1-0"]
[WhiteElo "2211"]
[BlackElo "2085"]
[TimeControl "180+1"]
[EndTime "11:35:50 PDT"]
[Termination "MasterMK73 won on time"]

1. e4 {[%clk 0:02:37.1]} 1... e5 {[%clk 0:02:58.8]} 2. Nc3 {[%clk 0:02:36.1]}
2... Nc6 {[%clk 0:02:58.9]} 3. g3 {[%clk 0:02:35.7]} 3... Bc5 {[%clk 0:02:49.5]}
4. Bg2 {[%clk 0:02:35.5]} 4... h5 {[%clk 0:02:37.8]} 5. h3 {[%clk 0:02:33.8]}
5... d6 {[%clk 0:02:37.1]} 6. Nge2 {[%clk 0:02:33.4]} 6... Nd4 {[%clk
0:02:35.8]} 7. d3 {[%clk 0:02:32.7]} 7... Nf6 {[%clk 0:02:29]} 8. Nxd4 {[%clk
0:02:25.8]} 8... Bxd4 {[%clk 0:02:27.9]} 9. Bg5 {[%clk 0:02:21.8]} 9... Be6
{[%clk 0:02:15.8]} 10. O-O {[%clk 0:02:12.2]} 10... Qe7 {[%clk 0:02:08.8]} 11.
Nd5 {[%clk 0:02:07.9]} 11... Bxd5 {[%clk 0:02:04.8]} 12. exd5 {[%clk 0:02:08]}
12... Qd7 {[%clk 0:01:57.7]} 13. c3 {[%clk 0:02:04]} 13... Bb6 {[%clk
0:01:56.2]} 14. d4 {[%clk 0:02:00.7]} 14... Nh7 {[%clk 0:01:51.6]} 15. Be3
{[%clk 0:01:59.7]} 15... O-O-O {[%clk 0:01:43.7]} 16. a4 {[%clk 0:01:57.7]}
16... a6 {[%clk 0:01:33.1]} 17. b4 {[%clk 0:01:54.8]} 17... f6 {[%clk
0:01:29.7]} 18. a5 {[%clk 0:01:47.9]} 18... Ba7 {[%clk 0:01:28.1]} 19. c4 {[%clk
0:01:48.1]} 19... Bxd4 {[%clk 0:01:22.4]} 20. Bxd4 {[%clk 0:01:47.3]} 20... exd4
{[%clk 0:01:22.2]} 21. Qxd4 {[%clk 0:01:47.4]} 21... Kb8 {[%clk 0:01:12.6]} 22.
b5 {[%clk 0:01:45.7]} 22... axb5 {[%clk 0:01:05]} 23. cxb5 {[%clk 0:01:29.5]}
23... Qxb5 {[%clk 0:00:54.8]} 24. Rfb1 {[%clk 0:01:25.3]} 24... Qa6 {[%clk
0:00:54.6]} 25. Rb3 {[%clk 0:01:17.5]} 25... Qa7 {[%clk 0:00:47.4]} 26. Qb2
{[%clk 0:01:15.2]} 26... Ka8 {[%clk 0:00:41.5]} 27. Bf1 {[%clk 0:01:09.7]} 27...
Ng5 {[%clk 0:00:39.5]} 28. Bg2 {[%clk 0:01:05.2]} 28... h4 {[%clk 0:00:34.9]}
29. g4 {[%clk 0:01:03.9]} 29... Rhe8 {[%clk 0:00:33.1]} 30. Rb1 {[%clk 0:01:03]}
30... Rb8 {[%clk 0:00:30.7]} 31. Qc3 {[%clk 0:01:02.3]} 31... Ne4 {[%clk
0:00:19.9]} 32. Qb2 {[%clk 0:00:51.2]} 32... Nc5 {[%clk 0:00:18.7]} 33. Rb5
{[%clk 0:00:45.6]} 33... Nd3 {[%clk 0:00:18]} 34. Qd2 {[%clk 0:00:45.1]} 34...
Nc5 {[%clk 0:00:17.4]} 35. Qc2 {[%clk 0:00:39.8]} 35... Re5 {[%clk 0:00:12.6]}
36. Bf3 {[%clk 0:00:37.5]} 36... Ree8 {[%clk 0:00:10.6]} 37. Kg2 {[%clk
0:00:37.3]} 37... Re5 {[%clk 0:00:10.9]} 38. Kg1 {[%clk 0:00:36.9]} 38... Ree8
{[%clk 0:00:11.1]} 39. Be2 {[%clk 0:00:34]} 39... Re5 {[%clk 0:00:09.9]} 40. Bc4
{[%clk 0:00:33.6]} 40... Rbe8 {[%clk 0:00:09.9]} 41. Bf1 {[%clk 0:00:31.7]}
41... Ne4 {[%clk 0:00:08.5]} 42. Rxb7 {[%clk 0:00:30.8]} 42... Qxb7 {[%clk
0:00:07.7]} 43. Rxb7 {[%clk 0:00:30.6]} 43... Kxb7 {[%clk 0:00:08.6]} 44. Qc6+
{[%clk 0:00:30.5]} 44... Ka7 {[%clk 0:00:07.7]} 45. Qa6+ {[%clk 0:00:29.6]}
45... Kb8 {[%clk 0:00:06.8]} 46. Qb5+ {[%clk 0:00:29.1]} 46... Kc8 {[%clk
0:00:04.7]} 47. Qc6 {[%clk 0:00:27.7]} 47... Nc5 {[%clk 0:00:02.2]} 48. a6
{[%clk 0:00:27.9]} 1-0